bitfinex-derivatives/quotes_BTCF0:USTF0_20250505
["timestamp","ask_amount","ask_price","bid_price","bid_amount"]
[1746417500323,0.5672095,94153.0,94152.0,0.27610086]
[1746417500829,0.5672095,94153.0,94152.0,0.27510086]
[1746417501329,0.5672095,94153.0,94152.0,0.27210086]
[1746417501527,0.5672095,94153.0,94152.0,0.21999816]
[1746417501829,0.6672095,94153.0,94152.0,0.21999816]
[1746417502330,0.7600095,94153.0,94152.0,0.21999816]
[1746417502520,0.7600095,94153.0,94152.0,0.00559316]
[1746417502723,0.2124186,94149.0,94148.0,0.092]
[1746417502917,0.6371786,94149.0,94148.0,0.092]
[1746417503122,0.7571786,94149.0,94148.0,0.092]
[1746417503525,0.9428786,94149.0,94148.0,0.092]
[1746417503733,0.9428786,94149.0,94148.0,0.3044208]
[1746417505133,0.8228786,94149.0,94148.0,0.3044208]
[1746417506532,0.8238786,94149.0,94148.0,0.3044208]
[1746417510023,0.9238786,94149.0,94148.0,0.3044208]
[1746417513932,0.2124253,94146.0,94145.0,0.00106219]
[1746417514433,0.2124253,94146.0,94145.0,0.21348979]
[1746417514631,0.2124253,94146.0,94145.0,0.00106219]
[1746417514829,0.3928253,94146.0,94145.0,0.00106219]
[1746417515641,0.3928253,94146.0,94145.0,0.21348979]
[1746417516547,0.3938253,94146.0,94145.0,0.21348979]
[1746417516942,0.3948253,94146.0,94145.0,0.21348979]
[1746417517234,0.3938253,94146.0,94145.0,0.21348979]
[1746417517439,0.3948253,94146.0,94145.0,0.21348979]
[1746417518737,0.3938253,94146.0,94145.0,0.21348979]
[1746417518942,0.3958253,94146.0,94145.0,0.21348979]
[1746417521241,0.7566253,94146.0,94145.0,0.21348979]
[1746417531148,0.97300448,94146.0,94145.0,0.21348979]
[1746417533947,0.7566253,94146.0,94145.0,0.21348979]
[1746417535446,1.1174253,94146.0,94145.0,0.21348979]
[1746417541242,0.0531092,94141.0,94114.0,0.0531241]
[1746417541448,0.2656099,94120.0,94119.0,0.2124721]
[1746417541649,0.2763685,94120.0,94119.0,0.2124721]
[1746417542153,0.28453282,94120.0,94119.0,0.3324721]
[1746417542755,0.28453282,94120.0,94119.0,0.3364721]
[1746417543354,0.37653282,94120.0,94119.0,0.3364721]
[1746417543555,0.46483282,94120.0,94119.0,0.3364721]
[1746417544050,0.46483282,94120.0,94119.0,0.3374721]
[1746417544248,0.46483282,94120.0,94119.0,0.3364721]
[1746417544449,0.46483282,94120.0,94119.0,0.4289721]
[1746417544744,0.46483282,94120.0,94119.0,0.5179721]
[1746417546253,0.46483282,94120.0,94119.0,0.5169721]
[1746417546559,0.46483282,94120.0,94119.0,0.5149721]
[1746417546751,0.46483282,94120.0,94119.0,0.5159721]
[1746417547148,0.37653282,94120.0,94119.0,0.4259721]
[1746417547352,0.47043282,94120.0,94119.0,0.4269721]
[1746417547955,0.47043282,94120.0,94119.0,0.4259721]
[1746417549762,0.47043282,94120.0,94119.0,0.2125]
[1746417550061,0.47043282,94120.0,94119.0,0.4249863]
[1746417550256,0.47043282,94120.0,94119.0,0.3049863]
[1746417550863,0.47143282,94120.0,94119.0,0.3049863]
[1746417551963,0.83223282,94120.0,94119.0,0.3049863]
[1746417552763,0.83223282,94120.0,94119.0,0.2124863]
[1746417555163,0.67386562,94120.0,94117.0,0.00159375]
[1746417555462,0.2124885,94118.0,94117.0,0.21408455]
[1746417555863,0.3955885,94118.0,94117.0,0.21408455]
[1746417557164,0.3965885,94118.0,94117.0,0.21408455]
[1746417563257,0.3965885,94118.0,94117.0,0.39238455]
[1746417563457,0.3955885,94118.0,94117.0,0.39238455]
[1746417563667,0.3955885,94118.0,94117.0,0.39338455]
[1746417564265,0.3955885,94118.0,94117.0,0.51338455]
[1746417565868,0.3955885,94118.0,94117.0,0.51238455]
[1746417566060,0.3955885,94118.0,94117.0,0.51338455]
[1746417566866,0.3955885,94118.0,94117.0,0.51438455]
[1746417568468,0.3955885,94118.0,94117.0,0.51238455]
[1746417568667,0.3955885,94118.0,94117.0,0.51438455]
[1746417569070,0.3955885,94118.0,94117.0,0.51338455]
[1746417569773,0.0905,94118.0,94117.0,0.51338455]
[1746417570370,0.2124874,94119.0,94118.0,0.2124885]
[1746417570669,0.2124874,94119.0,94118.0,0.4017885]
[1746417571170,0.2124874,94119.0,94118.0,0.5217885]
[1746417571672,0.3005874,94119.0,94118.0,0.5217885]
[1746417571872,0.3005874,94119.0,94118.0,0.5227885]
[1746417572772,0.3934874,94119.0,94118.0,0.5227885]
[1746417577177,0.181,94119.0,94118.0,0.5227885]
[1746417577367,0.4578063,94119.0,94118.0,0.5227885]
[1746417578268,0.4578063,94119.0,94118.0,0.5217885]
[1746417578568,0.4578063,94119.0,94118.0,0.5227885]
[1746417578978,0.15242,94119.0,94118.0,0.5227885]
[1746417579478,0.24472,94119.0,94118.0,0.5227885]
[1746417580965,0.24472,94119.0,94118.0,0.3334885]
[1746417581875,0.24472,94119.0,94118.0,0.4228885]
[1746417582370,0.24472,94119.0,94118.0,0.4238885]
[1746417582571,0.24472,94119.0,94118.0,0.4248885]
[1746417583067,0.24472,94119.0,94118.0,0.4238885]
[1746417583472,0.24472,94119.0,94118.0,0.3344885]
[1746417584479,0.24472,94119.0,94118.0,0.3354885]
[1746417585187,0.24472,94119.0,94118.0,0.3334885]
[1746417585785,0.24472,94119.0,94118.0,0.3324885]
[1746417585998,0.24472,94119.0,94118.0,0.3334885]
[1746417587991,0.24472,94119.0,94118.0,0.3324885]
[1746417588191,0.24472,94119.0,94118.0,0.3344885]
[1746417593997,0.1804,94119.0,94118.0,0.3344885]
[1746417594293,0.24484,94119.0,94118.0,0.3344885]
[1746417597400,0.24484,94119.0,94118.0,0.2144885]
[1746417598099,0.24484,94119.0,94118.0,0.3344885]
[1746417600101,0.24484,94119.0,94118.0,0.2144885]
[1746417601106,0.24484,94119.0,94118.0,0.3344885]
[1746417603799,0.11763953,94128.0,94127.0,0.2124682]
[1746417604006,0.06594,94170.0,94158.0,0.2123983]
[1746417604202,0.06594,94170.0,94169.0,0.2123734]
[1746417604708,0.0015,94170.0,94169.0,0.2123734]
[1746417604903,0.07386543,94170.0,94165.0,0.3608]
[1746417605107,0.24834,94169.0,94168.0,0.2123757]
[1746417605903,0.24834,94169.0,94166.0,0.2123791]
[1746417606211,0.24834,94169.0,94155.0,0.0918]
[1746417606212,0.2124182,94152.0,94151.0,0.2124129]
[1746417606510,0.2768582,94152.0,94151.0,0.2124129]
[1746417606707,0.06444,94152.0,94151.0,0.2124129]
[1746417607107,0.5732052,94155.0,94154.0,0.2124073]
[1746417607304,0.6376452,94155.0,94154.0,0.2124073]
[1746417607711,0.0531058,94147.0,94130.0,0.0531152]
[1746417608009,0.2124385,94141.0,94140.0,0.2124335]
[1746417608210,0.06444,94141.0,94140.0,0.2124335]
[1746417608406,0.06344,94141.0,94140.0,0.2124335]
[1746417610213,0.06344,94141.0,94140.0,0.3324335]
[1746417610605,0.06344,94141.0,94140.0,0.3344335]
[1746417611118,0.0943,94146.0,94145.0,0.2124276]
[1746417611410,0.15874,94146.0,94145.0,0.2124276]
[1746417613116,0.0943,94146.0,94145.0,0.2124276]
[1746417613411,0.15874,94146.0,94145.0,0.2124276]
[1746417614011,0.15874,94146.0,94145.0,0.3019276]
[1746417614207,0.15874,94146.0,94145.0,0.4219276]
[1746417614403,0.15874,94146.0,94145.0,0.4239276]
[1746417614714,0.15874,94146.0,94145.0,0.3344276]
[1746417614902,0.15874,94146.0,94145.0,0.3354276]
[1746417616912,0.15874,94146.0,94145.0,0.3344276]
[1746417617516,0.15874,94146.0,94145.0,0.3354276]
[1746417618014,0.15874,94146.0,94145.0,0.3344276]
[1746417618819,0.15874,94146.0,94145.0,0.122]
[1746417619013,0.51954,94146.0,94145.0,0.122]
[1746417619218,0.7819653,94146.0,94145.0,0.002]
[1746417619516,0.7819653,94146.0,94145.0,0.2144276]
[1746417619704,0.7319653,94146.0,94145.0,0.002]
[1746417619908,0.51954,94146.0,94145.0,0.2144276]
[1746417620109,0.51986,94146.0,94145.0,0.2144276]
[1746417620706,0.4551,94146.0,94145.0,0.2134276]
[1746417621118,0.4551,94146.0,94145.0,0.3334276]
[1746417621317,0.51986,94146.0,94145.0,0.3334276]
[1746417621706,0.4551,94146.0,94145.0,0.3334276]
[1746417621912,0.51986,94146.0,94145.0,0.3334276]
[1746417622113,0.7322853,94146.0,94145.0,0.001]
[1746417622717,0.2114298,94144.0,94143.0,0.2124317]
[1746417622915,0.1831,94145.0,94144.0,0.2124298]
[1746417623123,0.15996,94145.0,94144.0,0.2124298]
[1746417624423,0.15996,94145.0,94144.0,0.2134298]
[1746417626116,0.15996,94145.0,94144.0,0.3324298]
[1746417626315,0.15996,94145.0,94144.0,0.3344298]
[1746417626724,0.15996,94145.0,94144.0,0.3364298]
[1746417633026,0.15996,94145.0,94144.0,0.3344298]
[1746417633227,0.15996,94145.0,94144.0,0.3364298]
[1746417634126,0.15996,94145.0,94144.0,0.3344298]
[1746417634329,0.15996,94145.0,94144.0,0.3364298]
[1746417635033,0.15996,94145.0,94144.0,0.3354298]
[1746417636134,0.25476,94145.0,94144.0,0.3354298]
[1746417636327,0.25476,94145.0,94144.0,0.3344298]
[1746417637433,0.25476,94145.0,94144.0,0.3334298]
[1746417648135,0.61556,94145.0,94144.0,0.3334298]
[1746417648644,0.8279876,94145.0,94144.0,0.3334298]
[1746417649934,0.8279876,94145.0,94144.0,0.3324298]
[1746417650539,0.8289876,94145.0,94144.0,0.3324298]
[1746417654232,0.8289876,94145.0,94144.0,0.2124298]
[1746417655136,0.8289876,94145.0,94144.0,0.3324298]
[1746417658245,0.8279876,94145.0,94144.0,0.3324298]
[1746417659346,0.61556,94145.0,94144.0,0.3334298]
[1746417660442,0.8279876,94145.0,94144.0,0.3324298]
[1746417660643,0.8289876,94145.0,94144.0,0.3324298]
[1746417661045,0.8289876,94145.0,94144.0,0.3334298]
[1746417661445,0.8279876,94145.0,94144.0,0.3334298]
[1746417663542,0.8279876,94145.0,94144.0,0.3324298]
[1746417663746,0.8289876,94145.0,94144.0,0.3324298]
[1746417669141,0.8289876,94145.0,94144.0,0.3334298]
[1746417669337,0.61656,94145.0,94144.0,0.3334298]
[1746417669647,0.61556,94145.0,94144.0,0.3334298]
[1746417669945,0.8279876,94145.0,94144.0,0.3334298]
[1746417670342,0.24368193,94150.0,94144.0,0.121]
[1746417670539,0.24368193,94150.0,94149.0,0.2124186]
[1746417670740,0.30836193,94150.0,94149.0,0.2124186]
[1746417671134,0.30836193,94150.0,94149.0,0.34524751]
[1746417671744,0.30836193,94150.0,94149.0,0.44144751]
[1746417672544,0.06468,94150.0,94149.0,0.44144751]
[1746417673246,0.06468,94150.0,94149.0,0.44444751]
[1746417673447,0.06468,94150.0,94149.0,0.44644751]
[1746417673835,0.06468,94150.0,94149.0,0.44744751]
[1746417674244,0.06468,94150.0,94149.0,0.44844751]
[1746417675848,0.06468,94150.0,94149.0,0.44744751]
[1746417676648,0.06468,94150.0,94149.0,0.44844751]
[1746417677149,0.06468,94150.0,94149.0,0.44744751]
[1746417678751,0.06468,94150.0,94149.0,0.44844751]
[1746417679347,0.06468,94150.0,94149.0,0.3394186]
[1746417679547,0.06468,94150.0,94149.0,0.3384186]
[1746417679748,0.06468,94150.0,94149.0,0.3374186]
[1746417680155,0.06468,94150.0,94149.0,0.3354186]
[1746417680351,0.06468,94150.0,94149.0,0.3374186]
[1746417680955,0.06468,94150.0,94149.0,0.3364186]
[1746417681143,0.06468,94150.0,94149.0,0.2164186]
[1746417682749,0.06468,94150.0,94149.0,0.2154186]
[1746417683157,0.06468,94150.0,94149.0,0.3354186]
[1746417684962,0.06468,94150.0,94149.0,0.3344186]
[1746417685462,0.06468,94150.0,94149.0,0.3324186]
[1746417685652,0.06468,94150.0,94149.0,0.3364186]
[1746417692256,0.42548,94150.0,94149.0,0.3364186]
[1746417692463,0.3608,94150.0,94149.0,0.3364186]
[1746417692663,0.42524,94150.0,94149.0,0.3364186]
[1746417694261,0.06444,94150.0,94149.0,0.4260186]
[1746417695672,0.06444,94150.0,94149.0,0.4250186]
[1746417696158,0.06444,94150.0,94149.0,0.3354186]
[1746417696358,0.06444,94150.0,94149.0,0.4290186]
[1746417698862,0.0936,94152.0,94151.0,0.212414]
[1746417699068,0.15804,94152.0,94151.0,0.693214]
[1746417699656,0.15804,94152.0,94151.0,0.877814]
[1746417700169,0.15804,94152.0,94151.0,0.879814]
[1746417701671,0.15804,94152.0,94151.0,0.877814]
[1746417701872,0.15804,94152.0,94151.0,0.879814]
[1746417702265,0.15804,94152.0,94151.0,0.877814]
[1746417702466,0.15804,94152.0,94151.0,0.879814]
[1746417702870,0.15804,94152.0,94151.0,0.882814]
[1746417703371,0.15804,94152.0,94151.0,0.877814]
[1746417703562,0.15804,94152.0,94151.0,0.879814]
[1746417704072,0.0936,94152.0,94151.0,0.879814]
[1746417704463,0.0936,94152.0,94151.0,0.881814]
[1746417705173,0.0936,94152.0,94151.0,0.882814]
[1746417705669,0.0936,94152.0,94151.0,0.878814]
[1746417705873,0.0936,94152.0,94151.0,0.881814]
[1746417706070,0.0936,94152.0,94151.0,0.882814]
[1746417706272,0.0936,94152.0,94151.0,0.881814]
[1746417707872,0.0936,94152.0,94151.0,0.880814]
[1746417709572,0.06444,94154.0,94153.0,0.2124095]
[1746417709763,5e-08,94164.0,94163.0,0.212387]
[1746417709967,5e-08,94164.0,94163.0,0.573187]
[1746417710174,5e-08,94164.0,94163.0,0.693187]
[1746417710562,5e-08,94164.0,94163.0,0.875087]
[1746417711582,0.00100005,94164.0,94163.0,0.881087]
[1746417712075,0.00100005,94164.0,94163.0,0.875087]
[1746417712275,5e-08,94164.0,94163.0,0.875087]
[1746417712777,5e-08,94164.0,94163.0,0.881087]
[1746417714371,5e-08,94164.0,94163.0,0.884087]
[1746417714772,5e-08,94164.0,94163.0,0.882087]
[1746417715175,5e-08,94164.0,94163.0,0.881087]
[1746417715977,5e-08,94164.0,94163.0,0.883087]
[1746417717274,5e-08,94164.0,94163.0,0.758087]
[1746417717581,5e-08,94164.0,94163.0,0.668087]
[1746417718574,5e-08,94164.0,94163.0,0.219387]
[1746417719074,0.21238475,94164.0,94163.0,0.219387]
[1746417719273,0.17680005,94164.0,94163.0,0.219387]
[1746417719479,0.2124087,94158.0,94151.0,0.0531034]
[1746417719673,0.3588,94152.0,94151.0,0.212414]
[1746417720387,0.3548,94152.0,94151.0,0.212414]
[1746417720578,0.5388,94152.0,94151.0,0.212414]
[1746417720976,0.5388,94152.0,94151.0,0.216414]
[1746417721479,0.5388,94152.0,94151.0,0.215414]
[1746417722074,0.5388,94152.0,94151.0,0.214414]
[1746417722784,0.5398,94152.0,94151.0,0.214414]
[1746417725084,0.5398,94152.0,94151.0,0.212414]
[1746417725284,0.5408,94152.0,94151.0,0.212414]
[1746417727980,0.5398,94152.0,94151.0,0.212414]
[1746417728180,0.5418,94152.0,94151.0,0.212414]
[1746417728890,0.5418,94152.0,94147.0,0.2124167]
[1746417728891,0.2655412,94148.0,94147.0,0.2124167]
[1746417729785,0.2124169,94150.0,94149.0,0.2124163]
[1746417729984,0.4778,94152.0,94151.0,0.212414]
[1746417730283,0.0897,94153.0,94152.0,0.2124118]
[1746417730489,0.15398,94153.0,94152.0,0.2124118]
[1746417730684,0.15398,94153.0,94152.0,0.3050118]
[1746417731186,0.15398,94153.0,94152.0,0.4250118]
[1746417731686,0.15398,94153.0,94152.0,0.4270118]
[1746417731885,0.15398,94153.0,94152.0,0.4280118]
[1746417733491,0.15398,94153.0,94152.0,0.4250118]
[1746417734285,0.15398,94153.0,94152.0,0.4260118]
[1746417736895,0.15398,94153.0,94152.0,0.4250118]
[1746417737397,0.15498,94153.0,94152.0,0.4250118]
[1746417737894,0.15498,94153.0,94152.0,0.4270118]
[1746417738192,0.15398,94153.0,94152.0,0.4280118]
[1746417740495,0.15398,94153.0,94152.0,0.5156118]
[1746417741484,0.15398,94153.0,94152.0,0.5146118]
[1746417741887,0.0897,94153.0,94152.0,0.5146118]
[1746417742089,0.15398,94153.0,94152.0,0.5146118]
[1746417742595,0.0889,94162.0,94161.0,0.2123915]
[1746417742783,0.15342,94162.0,94161.0,0.2123915]
[1746417743096,5e-08,94164.0,94163.0,0.212387]
[1746417744189,0.00100005,94164.0,94163.0,0.332387]
[1746417744497,0.00300005,94164.0,94163.0,0.3451185]
[1746417745487,0.00100005,94164.0,94163.0,0.3471185]
[1746417746197,5e-08,94164.0,94163.0,0.7079185]
[1746417746602,0.0015,94170.0,94169.0,0.2123734]
[1746417747391,0.0015,94170.0,94169.0,0.3979734]
[1746417748290,0.0015,94170.0,94169.0,0.5189734]
[1746417754606,0.0015,94170.0,94169.0,0.5179734]
[1746417754796,0.0015,94170.0,94169.0,0.5199734]
[1746417755201,0.0015,94170.0,94169.0,0.3999734]
[1746417756798,0.0015,94170.0,94169.0,0.4907734]
[1746417757108,0.0015,94170.0,94169.0,0.6107734]
[1746417757302,1.16616,94186.0,94169.0,0.6107734]
[1746417757303,1.16616,94186.0,94172.0,0.0530912]
[1746417757502,0.06448,94178.0,94177.0,0.2123554]
[1746417758099,0.07230163,94178.0,94177.0,0.5238554]
[1746417758602,0.06448,94184.0,94181.0,0.2123464]
[1746417758803,0.06448,94184.0,94183.0,0.2123419]
[1746417759402,0.06448,94184.0,94183.0,0.3071419]
[1746417760107,0.06548,94184.0,94183.0,0.3071419]
[1746417760307,0.06548,94184.0,94183.0,0.4271419]
[1746417760501,0.07332314,94184.0,94183.0,0.4271419]
[1746417760702,0.07632314,94184.0,94183.0,0.4271419]
[1746417761309,0.07632314,94184.0,94183.0,0.3071419]
[1746417762313,0.17402314,94184.0,94183.0,0.3071419]
[1746417763917,0.16618,94184.0,94183.0,0.3071419]
[1746417764711,0.17416899,94184.0,94183.0,0.3071419]
[1746417764915,0.17416899,94184.0,94183.0,0.2123419]
[1746417774020,0.38662859,94184.0,94183.0,0.2123419]
[1746417774326,0.29428899,94184.0,94183.0,0.2123419]
[1746417774725,0.50662859,94184.0,94183.0,0.2123419]
[1746417775421,0.2123554,94177.0,94176.0,0.2654413]
[1746417775621,0.5731554,94177.0,94176.0,0.2654413]
[1746417776023,0.2654576,94174.0,94173.0,0.2123624]
[1746417776224,0.2123667,94174.0,94173.0,0.2123624]
[1746417776528,0.3123667,94174.0,94173.0,0.2123624]
[1746417777128,0.4323667,94174.0,94173.0,0.2123624]
[1746417777518,0.2654632,94172.0,94171.0,0.2123679]
[1746417777923,0.3716512,94172.0,94171.0,0.2123679]
[1746417778225,0.6706512,94172.0,94171.0,0.2123679]
[1746417778831,0.6726512,94172.0,94171.0,0.2123679]
[1746417779019,0.6756512,94172.0,94171.0,0.2123679]
[1746417779920,0.6736512,94172.0,94171.0,0.2123679]
[1746417780430,0.6706512,94172.0,94171.0,0.2123679]
[1746417780627,0.6716512,94172.0,94171.0,0.2123679]
[1746417781332,0.6746512,94172.0,94171.0,0.2123679]
[1746417782132,0.6776512,94172.0,94171.0,0.2123679]
[1746417783132,0.6746512,94172.0,94171.0,0.2123679]
[1746417783327,0.6776512,94172.0,94171.0,0.2123679]
[1746417783527,0.6255592,94172.0,94171.0,0.2123679]
[1746417784022,0.6215592,94172.0,94171.0,0.2123679]
[1746417784223,0.6255592,94172.0,94171.0,0.2123679]
[1746417784535,0.5193712,94172.0,94171.0,0.2123679]
[1746417786139,0.3993712,94172.0,94171.0,0.2123679]
[1746417787634,0.3953712,94172.0,94171.0,0.2123679]
[1746417787839,0.3963712,94172.0,94171.0,0.2123679]
[1746417788832,0.3943712,94172.0,94171.0,0.2123679]
[1746417790436,0.3953712,94172.0,94171.0,0.2123679]
[1746417790830,0.3943712,94172.0,94171.0,0.2123679]
[1746417791038,0.7561712,94172.0,94171.0,0.2123679]
[1746417793743,0.7551712,94172.0,94171.0,0.2123679]
[1746417795441,0.8551712,94172.0,94171.0,0.2123679]
[1746417795641,0.2654952,94166.0,94165.0,0.21237]
[1746417795833,0.4363312,94166.0,94165.0,0.21237]
[1746417796637,0.4894295,94166.0,94165.0,0.21237]
[1746417797136,0.3321352,94166.0,94165.0,0.21237]
[1746417797742,0.3331352,94166.0,94165.0,0.21237]
[1746417803244,0.3331352,94166.0,94165.0,0.30087]
[1746417803245,0.06764,94166.0,94165.0,0.30087]
[1746417803445,0.2800202,94166.0,94165.0,0.30087]
[1746417803648,0.3717202,94166.0,94165.0,0.30087]
[1746417804044,0.15934,94166.0,94165.0,0.30087]
[1746417804247,0.06764,94166.0,94165.0,0.30087]
[1746417805648,0.06664,94166.0,94165.0,0.30087]
[1746417806040,0.06664,94166.0,94165.0,0.42087]
[1746417806236,0.06464,94166.0,94165.0,0.42087]
[1746417806441,0.06564,94166.0,94165.0,0.42087]
[1746417808138,0.06564,94166.0,94165.0,0.42287]
[1746417808546,0.06464,94166.0,94165.0,0.42287]
[1746417808745,0.06564,94166.0,94165.0,0.42287]
[1746417809445,0.06464,94166.0,94165.0,0.42087]
[1746417809641,0.06464,94166.0,94165.0,0.42187]
[1746417810547,0.06464,94166.0,94165.0,0.42087]
[1746417814145,0.3069429,94183.0,94182.0,0.2123441]
[1746417814346,0.3715429,94183.0,94182.0,0.2123441]
[1746417815037,0.3715429,94183.0,94182.0,0.3036441]
[1746417815749,0.1592,94183.0,94182.0,0.3036441]
[1746417816252,0.1612,94183.0,94182.0,0.3036441]
[1746417816454,0.2517,94183.0,94182.0,0.3036441]
[1746417825656,0.1871,94183.0,94182.0,0.3036441]
[1746417825853,0.2517,94183.0,94182.0,0.3036441]
[1746417826052,0.6125,94183.0,94182.0,0.3036441]
[1746417826857,0.2517,94183.0,94182.0,0.3036441]
[1746417827050,0.6125,94183.0,94182.0,0.3036441]
[1746417831653,0.6145,94183.0,94182.0,0.3036441]
[1746417832853,0.8268419,94183.0,94182.0,0.3036441]
[1746417833756,0.6145,94183.0,94182.0,0.3036441]
[1746417834960,0.6115,94183.0,94182.0,0.3036441]
[1746417835257,0.6125,94183.0,94182.0,0.3036441]
[1746417837160,0.2517,94183.0,94182.0,0.3036441]
[1746417837460,0.6125,94183.0,94182.0,0.3036441]
[1746417839161,0.2517,94183.0,94182.0,0.3036441]
[1746417839460,0.6125,94183.0,94182.0,0.3036441]
[1746417841063,0.2517,94183.0,94182.0,0.3036441]
[1746417841365,0.6125,94183.0,94182.0,0.3036441]
[1746417842259,0.2517,94183.0,94182.0,0.3036441]
[1746417842559,0.6125,94183.0,94182.0,0.3036441]
[1746417844961,0.5479,94183.0,94182.0,0.3036441]
[1746417845166,0.42816,94183.0,94182.0,0.3036441]
[1746417845353,0.06736,94183.0,94182.0,0.6644441]
[1746417845767,0.06736,94183.0,94182.0,0.7534441]
[1746417846160,0.06736,94183.0,94182.0,0.8734441]
[1746417847673,0.06536,94183.0,94182.0,0.8734441]
[1746417847861,0.06736,94183.0,94182.0,0.8734441]
[1746417848061,0.06636,94183.0,94182.0,0.8734441]
[1746417848262,0.06736,94183.0,94182.0,0.8734441]
[1746417850268,0.06736,94183.0,94182.0,0.7534441]
[1746417850871,0.003,94183.0,94182.0,0.7534441]
[1746417851271,0.003,94183.0,94182.0,0.8734441]
[1746417852169,0.003,94183.0,94182.0,0.3926441]
[1746417853070,0.003,94183.0,94182.0,0.5126441]
[1746417855976,0.0931,94191.0,94190.0,0.2654076]
[1746417855977,0.06436,94191.0,94190.0,0.2654076]
[1746417856577,0.06436,94191.0,94190.0,0.5435076]
[1746417857173,0.06836,94191.0,94190.0,0.5435076]
[1746417857576,0.07136,94191.0,94190.0,0.5435076]
[1746417858171,0.07926274,94191.0,94190.0,0.5435076]
[1746417860680,0.04698,94193.0,94192.0,0.2123216]
[1746417861272,0.04698,94193.0,94192.0,0.5731216]
[1746417862182,0.04998,94193.0,94192.0,0.5731216]
[1746417862776,0.05198,94193.0,94192.0,0.5731216]
[1746417864980,0.24388,94193.0,94192.0,0.5731216]
[1746417867388,0.14658,94193.0,94192.0,0.5731216]
[1746417868270,0.14658,94193.0,94192.0,0.2123216]
[1746417868481,0.14658,94193.0,94192.0,0.5731216]
[1746417872287,1e-08,94193.0,94192.0,0.5731216]
[1746417872472,0.09,94198.0,94197.0,0.2123103]
[1746417873172,0.21,94198.0,94197.0,0.2123103]
[1746417874173,0.09,94198.0,94197.0,0.3099103]
[1746417874686,0.093,94198.0,94197.0,0.3099103]
[1746417874888,0.093,94198.0,94197.0,0.2123103]
[1746417875875,0.1821,94198.0,94197.0,0.3025103]
[1746417876080,0.3021,94198.0,94197.0,0.3025103]
[1746417876281,0.30987743,94198.0,94197.0,0.3025103]
[1746417876682,0.22077743,94198.0,94197.0,0.3025103]
[1746417876888,0.123,94198.0,94197.0,0.3025103]
[1746417877185,1e-07,94206.0,94205.0,0.2122923]
[1746417878282,1e-07,94206.0,94205.0,0.3976923]
[1746417878484,0.0050001,94206.0,94205.0,0.3976923]
[1746417880182,0.2189001,94206.0,94205.0,0.3976923]
[1746417881690,0.22693568,94206.0,94205.0,0.3976923]
[1746417886286,0.10693568,94206.0,94205.0,0.3976923]
[1746417890095,0.22693568,94206.0,94205.0,0.3976923]
[1746417892491,0.10565528,94206.0,94205.0,0.5038443]
[1746417892697,0.05979408,94206.0,94205.0,0.5038443]
[1746417893098,0.00861198,94206.0,94205.0,0.3976923]
[1746417893311,8e-08,94206.0,94205.0,0.3976923]
[1746417894193,0.0887,94210.0,94209.0,0.2122833]
[1746417894392,0.1841,94210.0,94209.0,0.2122833]
[1746417894900,0.19214917,94210.0,94209.0,0.2122833]
[1746417895099,0.31214917,94210.0,94209.0,0.3942833]
[1746417895300,0.31414917,94210.0,94209.0,0.3942833]
[1746417895501,0.31414917,94210.0,94209.0,0.7550833]
[1746417896404,0.044447,94210.0,94209.0,0.7550833]
[1746417899594,0.227747,94210.0,94209.0,0.7550833]
[1746417901704,0.227747,94210.0,94209.0,0.3942833]
[1746417912507,0.1962599,94210.0,94209.0,0.3942833]
[1746417912707,0.1011599,94210.0,94209.0,0.3942833]
[1746417917710,9e-08,94211.0,94210.0,0.212281]
[1746417918004,0.28041641,94216.0,94215.0,0.2122698]
[1746417918209,0.13692641,94216.0,94215.0,0.2122698]
[1746417918405,1e-08,94216.0,94215.0,0.2122698]
[1746417918604,1e-08,94216.0,94215.0,0.3931698]
[1746417919504,0.06412,94221.0,94220.0,0.2122585]
[1746417920103,0.18412,94221.0,94220.0,0.2122585]
[1746417920311,0.18412,94221.0,94220.0,0.3931585]
[1746417921522,0.0896,94222.0,94221.0,0.2122562]
[1746417921710,0.3608,94223.0,94222.0,0.212254]
[1746417922008,0.0554411,94227.0,94226.0,0.212245]
[1746417922310,0.24519689,94234.0,94233.0,0.2122292]
[1746417922509,9e-08,94234.0,94233.0,0.2122292]
[1746417922912,9e-08,94236.0,94235.0,0.2122247]
[1746417923103,0.12000009,94236.0,94235.0,0.2122247]
[1746417923303,0.08809439,94236.0,94235.0,0.2122247]
[1746417925606,0.08809439,94236.0,94235.0,0.3052247]
[1746417927812,9e-08,94236.0,94235.0,0.3052247]
[1746417928007,0.15344,94249.0,94248.0,0.2121954]
[1746417928212,0.27344,94249.0,94248.0,0.2121954]
[1746417929215,0.28125176,94249.0,94248.0,0.3940954]
[1746417929807,0.19185176,94249.0,94248.0,0.3940954]
[1746417932718,0.12781176,94249.0,94248.0,0.3940954]
[1746417934022,0.21761176,94249.0,94248.0,0.3940954]
[1746417939120,0.21761176,94249.0,94248.0,0.3027954]
[1746417939314,0.27078176,94249.0,94248.0,0.2121954]
[1746417939719,0.21761176,94249.0,94248.0,0.2121954]
[1746417940326,0.21761176,94249.0,94248.0,0.3076954]
[1746417941427,0.12781176,94249.0,94248.0,0.3076954]
[1746417944528,0.12781176,94249.0,94248.0,0.2121954]
[1746417945227,0.22231176,94249.0,94248.0,0.2121954]
[1746417951531,0.22231176,94249.0,94248.0,0.3005954]
[1746417960738,0.22247899,94249.0,94248.0,0.3005954]
[1746417964534,0.12797899,94249.0,94248.0,0.3005954]
[1746417970839,0.00159205,94256.0,94255.0,0.2121797]
[1746417971747,0.00159205,94256.0,94255.0,0.41363901]
[1746417972043,0.00956976,94256.0,94255.0,0.41363901]
[1746417972244,0.12159205,94256.0,94255.0,0.41363901]
[1746417976446,0.12966905,94256.0,94255.0,0.41363901]
[1746417979646,0.22076905,94256.0,94255.0,0.41363901]
[1746417983858,0.12966905,94256.0,94255.0,0.41363901]
[1746417986367,0.06412,94262.0,94261.0,0.2121662]
[1746417987072,0.18412,94262.0,94261.0,0.2121662]
[1746417987372,0.18412,94262.0,94261.0,0.3967662]
[1746417987570,0.19217706,94262.0,94261.0,0.3967662]
[1746417995274,0.12805706,94262.0,94261.0,0.3967662]
[1746418002178,0.55289706,94262.0,94258.0,0.0530432]
[1746418002480,0.1815,94261.0,94260.0,0.2121684]
[1746418002875,0.287588,94261.0,94260.0,0.2121684]
[1746418003074,0.381288,94261.0,94260.0,0.2121684]
[1746418003280,0.501288,94261.0,94260.0,0.2121684]
[1746418003476,0.851288,94261.0,94233.0,0.0530571]